fUSD/lending_fUSD_20251201
["ID","MTS","AMOUNT","RATE_DAILY","PERIOD"]
[395306520,1764604242692,-227.28,0.00016254,2]
[395306522,1764604242703,-150.0,0.00016258,2]
[395306524,1764604242713,-150.0,0.00016279,2]
[395306526,1764604242724,-150.0,0.00016296,2]
[395306531,1764604242735,-150.0,0.00016307,2]
[395306535,1764604242746,-150.0,0.00016307,2]
[395306540,1764604242757,-150.0,0.00016326,2]
[395306543,1764604242767,-9148.46739338,0.00016329,2]
[395306545,1764604242778,-150.0,0.00016333,2]
[395306547,1764604242789,-150.0,0.00016333,2]
[395306549,1764604242800,-150.0,0.00016349,2]
[395306552,1764604242815,-150.0,0.00016349,2]
[395306554,1764604242826,-150.0,0.00016349,2]
[395306556,1764604242837,-5888.0,0.00016391,2]
[395306559,1764604242848,-250.0,0.00016393,2]
[395306562,1764604242858,-150.0,0.00016402,2]
[395306566,1764604242869,-206.71851289,0.00016405,2]
[395306569,1764604242879,-1147.19,0.00016405,2]
[395306572,1764604242890,-600.0,0.00016414,2]
[395306575,1764604242901,-150.0,0.0001642,2]
[395306578,1764604242911,-150.0,0.0001642,2]
[395306581,1764604242921,-150.0,0.0001642,2]
[395306584,1764604242932,-150.0,0.0001642,2]
[395306587,1764604242943,-1000.0,0.00016438,2]
[395306591,1764604242954,-1000.0,0.00016438,2]
[395306593,1764604242965,-1000.0,0.00016438,2]
[395306597,1764604242975,-317.37727413,0.00016438,2]
[395306600,1764604242985,-501.93,0.00016438,2]
[395306603,1764604242996,-501.93,0.00016438,2]
[395306606,1764604243007,-501.93,0.00016438,2]
[395306610,1764604243017,-501.93,0.00016438,2]
[395306612,1764604243027,-501.93,0.00016438,2]
[395306614,1764604243037,-501.93,0.00016438,2]
[395306616,1764604243049,-501.93,0.00016438,2]
[395306618,1764604243060,-500.0,0.00016438,2]
[395306620,1764604243072,-500.0,0.00016438,2]
[395306622,1764604243083,-500.0,0.00016438,2]
[395306624,1764604243095,-500.0,0.00016438,2]
[395306626,1764604243107,-500.0,0.00016438,2]
[395306628,1764604243119,-500.0,0.00016438,2]
[395306630,1764604243130,-500.0,0.00016438,2]
[395306632,1764604243141,-500.0,0.00016438,2]
[395306634,1764604243152,-500.0,0.00016438,2]
[395306636,1764604243166,-500.0,0.00016438,2]
[395306637,1764604243178,-500.0,0.00016438,2]
[395306638,1764604243192,-500.0,0.00016438,2]
[395306639,1764604243203,-500.0,0.00016438,2]
[395306640,1764604243214,-500.0,0.00016438,2]
[395306641,1764604243224,-500.0,0.00016438,2]
[395306642,1764604243235,-500.0,0.00016438,2]
[395306643,1764604243246,-500.0,0.00016438,2]
[395306644,1764604243256,-500.0,0.00016438,2]
[395306645,1764604243266,-500.0,0.00016438,2]
[395306646,1764604243277,-500.0,0.00016438,2]
[395306647,1764604243288,-500.0,0.00016438,2]
[395306648,1764604243299,-500.0,0.00016438,2]
[395306649,1764604243309,-500.0,0.00016438,2]
[395306650,1764604243320,-500.0,0.00016438,2]
[395306651,1764604243330,-500.0,0.00016438,2]
[395306652,1764604243341,-500.0,0.00016438,2]
[395306653,1764604243351,-500.0,0.00016438,2]
[395306654,1764604243368,-500.0,0.00016438,2]
[395306655,1764604243378,-500.0,0.00016438,2]
[395306656,1764604243389,-500.0,0.00016438,2]
[395306657,1764604243400,-168.05988622,0.00016438,2]
[395306658,1764604243410,-500.0,0.00016438,2]
[395306659,1764604243420,-500.0,0.00016438,2]
[395306660,1764604243431,-500.0,0.00016438,2]
[395306661,1764604243443,-500.0,0.00016438,2]
[395306662,1764604243453,-500.0,0.00016438,2]
[395306663,1764604243463,-500.0,0.00016438,2]
[395306664,1764604243474,-500.0,0.00016438,2]
[395306665,1764604243484,-500.0,0.00016438,2]
[395306666,1764604243495,-500.0,0.00016438,2]
[395306667,1764604243505,-500.0,0.00016438,2]
[395306668,1764604243516,-500.0,0.00016438,2]
[395306669,1764604243526,-500.0,0.00016438,2]
[395306670,1764604243536,-500.0,0.00016438,2]
[395306671,1764604243546,-500.0,0.00016438,2]
[395306672,1764604243558,-500.0,0.00016438,2]
[395306673,1764604243568,-500.0,0.00016438,2]
[395306674,1764604243579,-500.0,0.00016438,2]
[395306675,1764604243590,-500.0,0.00016438,2]
[395306677,1764604243601,-500.0,0.00016438,2]
[395306679,1764604243610,-264.97434409,0.00016438,2]
[395306681,1764604243621,-500.0,0.00016438,2]
[395306683,1764604243632,-500.0,0.00016438,2]
[395306684,1764604243642,-500.0,0.00016438,2]
[395306685,1764604243652,-500.0,0.00016438,2]
[395306686,1764604243662,-500.0,0.00016438,2]
[395306687,1764604243673,-500.0,0.00016438,2]
[395306688,1764604243683,-500.0,0.00016438,2]
[395306689,1764604243696,-500.0,0.00016438,2]
[395306690,1764604243707,-500.0,0.00016438,2]
[395306691,1764604243717,-500.0,0.00016438,2]
[395306692,1764604243728,-500.0,0.00016438,2]
[395306693,1764604243739,-500.0,0.00016438,2]
[395306694,1764604243750,-500.0,0.00016438,2]
[395306695,1764604243761,-500.0,0.00016438,2]
[395306696,1764604243772,-500.0,0.00016438,2]
[395306697,1764604243783,-500.0,0.00016438,2]
[395306698,1764604243794,-500.0,0.00016438,2]
[395306699,1764604243804,-500.0,0.00016438,2]
[395306700,1764604243814,-650.0,0.00016438,2]
[395306701,1764604243824,-5369.57,0.00016438,2]
[395306702,1764604243835,-800.0,0.00016438,2]
[395306703,1764604243845,-150.0,0.00016455,2]
[395306704,1764604243855,-150.0,0.00016464,2]
[395306705,1764604243866,-150.0,0.00016464,2]
[395306706,1764604243876,-150.0,0.00016491,2]
[395306707,1764604243886,-150.0,0.00016501,2]
[395306708,1764604243897,-150.0,0.00016509,2]
[395306709,1764604243907,-150.0,0.00016514,2]
[395306710,1764604243918,-150.0,0.00016533,2]
[395306711,1764604243928,-150.0,0.00016562,2]
[395306712,1764604243940,-150.0,0.00016562,2]
[395306713,1764604243950,-150.0,0.00016562,2]
[395306714,1764604243961,-150.0,0.00016594,2]
[395306715,1764604243971,-150.0,0.00016594,2]
[395306716,1764604243981,-150.0,0.00016609,2]
[395306717,1764604243992,-1428.42391129,0.00016613,2]
[395306718,1764604244002,-150.0,0.00016615,2]
[395306719,1764604244012,-150.0,0.00016632,2]
[395306720,1764604244023,-150.0,0.00016647,2]
[395306721,1764604244033,-150.0,0.00016647,2]
[395306722,1764604244043,-427.65493559,0.0001666,2]
[395306723,1764604244053,-150.0,0.00016668,2]
[395306724,1764604244063,-1500.0,0.00016668,2]
[395306725,1764604244074,-1147.19,0.00016679,2]
[395306726,1764604244084,-150.0,0.00016703,2]
[395306727,1764604244095,-150.0,0.00016703,2]
[395306728,1764604244105,-150.0,0.00016721,2]
[395306729,1764604244115,-150.0,0.00016725,2]
[395306730,1764604244125,-150.0,0.00016725,2]
[395306731,1764604244135,-150.0,0.00016744,2]
[395306732,1764604244146,-150.0,0.0001676,2]
[395306733,1764604244157,-411.9192268,0.00016768,2]
[395306734,1764604244168,-500.0,0.00016768,2]
[395306735,1764604244178,-589.16818457,0.00016768,2]
[395306736,1764604244190,-185.70782818,0.00016768,2]
[395306737,1764604244200,-215.10308759,0.00016768,2]
[395306738,1764604244210,-1000.0,0.00016768,2]
[395306739,1764604244220,-1500.0,0.00016768,2]
[395306740,1764604244231,-507.53552233,0.00016768,2]
[395306741,1764604244242,-1500.0,0.00016768,2]
[395306742,1764604244253,-150.0,0.00016774,2]
[395306743,1764604244263,-150.0,0.00016774,2]
[395306744,1764604244273,-150.0,0.00016774,2]
[395306745,1764604244284,-150.0,0.00016798,2]
[395306746,1764604244295,-501.93,0.00016815,2]
[395306747,1764604244306,-150.0,0.00016827,2]
[395306748,1764604244316,-150.0,0.00016845,2]
[395306749,1764604244326,-150.0,0.00016856,2]
[395306751,1764604244336,-150.0,0.00016856,2]
[395306753,1764604244346,-200.0,0.00016864,2]
[395306754,1764604244356,-150.0,0.00016873,2]
[395306755,1764604244366,-150.0,0.0001688,2]
[395306757,1764604244376,-150.0,0.00016892,2]
[395306759,1764604244386,-14676.19609509,0.000169,2]
[395306760,1764604244396,-425.5347,0.000169,2]
[395306762,1764604244406,-1803.0271837,0.000169,2]
[395306764,1764604244416,-180.05632896,0.000169,2]
[395306765,1764604244427,-4891.16942662,0.000169,2]
[395306766,1764604244441,-388.91082704,0.000169,2]
[395306767,1764604244451,-286.9588226,0.000169,2]
[395306768,1764604244461,-262.69653724,0.000169,2]
[395306769,1764604244471,-150.0,0.00016916,2]
[395306770,1764604244481,-150.0,0.00016933,2]
[395306771,1764604244491,-5888.0,0.00016945,2]
[395306772,1764604244501,-500.0,0.00016945,2]
[395306773,1764604244513,-1147.19,0.00016953,2]
[395306774,1764604244523,-15940.0,0.00016959,2]
[395306775,1764604244533,-1716.0,0.00016959,2]
[395306776,1764604244545,-600.0,0.00016962,2]
[395306777,1764604244558,-244.0,0.00016979,2]
[395306778,1764604244568,-500.0,0.00016983,2]
[395306779,1764604244579,-226.43577512,0.00016986,2]
[395306780,1764604244590,-150.0,0.00016986,2]
[395306781,1764604244599,-150.0,0.00016986,2]
[395306782,1764604244610,-150.0,0.00016986,2]
[395306783,1764604244621,-150.0,0.00016986,2]
[395306784,1764604244634,-150.0,0.00016986,2]
[395306785,1764604244644,-150.0,0.00016986,2]
[395306786,1764604244654,-150.0,0.00016986,2]
[395306787,1764604244664,-150.0,0.00016986,2]
[395306788,1764604244675,-150.00000001,0.00016986,2]
[395306789,1764604244685,-150.0,0.00016986,2]
[395306790,1764604244698,-150.0,0.00016986,2]
[395306791,1764604244708,-150.0,0.00016986,2]
[395306792,1764604244719,-150.0,0.00016986,2]
[395306793,1764604244729,-150.0,0.00016986,2]
[395306794,1764604244740,-150.0,0.00016986,2]
[395306795,1764604244750,-1166.04211299,0.0001699,2]
[395306796,1764604244761,-1166.04211299,0.0001699,2]
[395306797,1764604244772,-1166.04211299,0.0001699,2]
[395306798,1764604244782,-8272.86942617,0.00016999,2]
[395306799,1764604244792,-501.93,0.00016999,2]
[395306800,1764604244803,-501.93,0.00016999,2]
[395306801,1764604244813,-501.93,0.00016999,2]
[395306802,1764604244823,-501.93,0.00016999,2]
[395306803,1764604244834,-501.93,0.00016999,2]
[395306804,1764604244844,-501.93,0.00016999,2]
[395306805,1764604244854,-501.93,0.00016999,2]
[395306806,1764604244864,-501.93,0.00016999,2]
[395306807,1764604244874,-501.93,0.00016999,2]
[395306808,1764604244884,-501.93,0.00016999,2]
[395306809,1764604244894,-501.93,0.00016999,2]
[395306810,1764604244905,-501.93,0.00016999,2]
[395306811,1764604244915,-501.93,0.00016999,2]
[395306812,1764604244925,-501.93,0.00016999,2]
[395306813,1764604244937,-501.93,0.00016999,2]
[395306814,1764604244947,-502.12,0.00016999,2]
[395306815,1764604244958,-4603.1368706,0.00016999,2]
[395306816,1764604244968,-500.0,0.00016999,2]
[395306817,1764604244978,-500.0,0.00016999,2]
[395306818,1764604244988,-500.0,0.00016999,2]
[395306819,1764604244998,-500.0,0.00016999,2]
[395306820,1764604245008,-500.0,0.00016999,2]
[395306821,1764604245019,-220.38756013,0.00016999,2]
[395306822,1764604245029,-300.0,0.00016999,2]
[395306823,1764604245039,-300.0,0.00016999,2]
[395306824,1764604245049,-300.0,0.00016999,2]
[395306825,1764604245059,-3440166.74212812,0.00017,2]
[395306826,1764604245104,-1384.14441634,0.00017,2]
[395306827,1764604245117,-6258.7835539,0.00017,2]
[395306828,1764604245129,-4203.36,0.00017,2]
[395306829,1764604245142,-400.84,0.00017,2]
[395306830,1764604245154,-861.147767,0.00017,2]
[395306831,1764604245166,-575.01026315,0.00017,2]
[395306832,1764604245177,-453.02901227,0.00017,2]
[395306833,1764604245190,-1696.0,0.00017,2]
[395306834,1764604245206,-17015.9624,0.00017,2]
[395306835,1764604245218,-1371.20622272,0.00017,2]
[395306843,1764604245883,-389.9512,0.00016519,2]
[395306844,1764604245896,-4203.36,0.00016519,2]
[395306845,1764604245910,-4555.15619338,0.00016519,2]
[395306846,1764604245920,-3518.9870069,0.00017,2]
[395306848,1764604245995,-268.90191898,0.00017,2]
[395306849,1764604246009,-297.53962862,0.00017,2]
[395306850,1764604246031,-6561.4500775,0.00017,2]
[395306851,1764604246046,-841.0,0.00017,2]
[395306852,1764604246061,-3031.88886,0.00017,2]
[395306853,1764604246076,-397.82347866,0.00017,2]
[395306854,1764604246091,-355.434006,0.00017,2]
[395306855,1764604246246,-500.0,0.00015673,2]
[395306857,1764604246259,-340.0,0.00015676,2]
[395306860,1764604246273,-274.88891528,0.00015676,2]
[395306861,1764604246287,-156.67026508,0.00015676,2]
[395306862,1764604246299,-3887.90262835,0.00016139,2]
[395306863,1764604246314,-5353.88600038,0.00016139,2]
[395306864,1764604246325,-85780.72090277,0.00017,2]
[395306865,1764604246380,-4244.81499146,0.00017,2]
[395306866,1764604246395,-29412.1117943,0.00017,2]
[395306867,1764604246410,-2535.23056683,0.00017,2]
[395306930,1764605141338,203.0,9.989e-05,2]
[395306935,1764605253511,385.1,7.087e-05,2]
[395306936,1764605253724,385.1,7.46e-05,2]
[395306937,1764605253919,385.1,7.833e-05,2]
[395306938,1764605266815,385.1,8.206e-05,2]
[395306939,1764605267037,385.1,8.579e-05,2]
[395306940,1764605267245,385.1,8.952e-05,2]
[395306941,1764605267500,385.1,9.325e-05,2]
[395306942,1764605267735,385.1,9.698e-05,2]
[395306943,1764605267980,385.1,0.00010071,2]
[395306944,1764605268239,385.1,0.00010444,2]
[395306945,1764605268462,385.1,0.00010817,2]
[395306946,1764605268689,385.1,0.0001119,2]
[395306947,1764605268915,385.1,0.00011563,2]
[395306948,1764605270582,385.1,0.00011936,2]
[395306951,1764605327649,-385.1,0.00012309,2]
[395306952,1764605327676,-385.1,0.00012682,2]
[395306953,1764605327700,-385.1,0.00013055,2]
[395306954,1764605327722,-385.1,0.00013428,2]
[395306955,1764605327744,-929.45,0.00013699,2]
[395306956,1764605327767,-385.1,0.00013801,2]
[395306957,1764605327791,-385.1,0.00014173,2]
[395306958,1764605327813,-193.6250797,0.00014211,2]
[395306959,1764605327835,-1602.24,0.00014233,2]
[395306960,1764605327858,-150.0,0.00014243,2]
[395306961,1764605327885,-150.0,0.0001426,2]
[395306962,1764605327907,-500.0,0.00014311,2]
[395306963,1764605327929,-254.0,0.00014369,2]
[395306964,1764605327951,-265.7932,0.00014564,2]
[395306965,1764605327973,-195.0,0.00014614,2]
[395306966,1764605327996,-166.66,0.00014665,2]
[395306967,1764605328018,-209.0,0.00014665,2]
[395306968,1764605328041,-195.0,0.00014697,2]
[395306969,1764605328064,-999.0,0.00014729,3]
[395306970,1764605328088,-877.18,0.00014864,2]
[395306971,1764605328110,-166.66,0.00014973,2]
[395306972,1764605329494,306.0,0.00014369,2]
[395307007,1764605372942,6518.32750432,0.00014902,2]
[395307016,1764605432145,-1200.0,0.00015001,2]
[395307017,1764605432156,-212.0,0.00015001,2]
[395307018,1764605432166,-300.0,0.00015002,2]
[395307019,1764605432177,-300.0,0.00015002,2]
[395307020,1764605432187,-300.0,0.00015002,2]
[395307021,1764605432197,-166.66,0.00015003,2]
[395307022,1764605432207,-299.99,0.00015003,2]
[395307023,1764605432217,-1149.8,0.00015003,2]
[395307024,1764605432227,-150.99,0.00015003,2]
[395307025,1764605432238,-1457.89,0.00015003,2]
[395307026,1764605432248,-3155.88588353,0.00015003,2]
[395307053,1764605439392,-606.64411647,0.00015003,2]
[395307054,1764605439402,-1946.74405483,0.00015003,2]
[395307055,1764605439414,-1119.4911853,0.00015003,2]
[395307056,1764605439425,-673.5061335,0.00015003,2]
[395307057,1764605439437,-571.87834165,0.00015003,2]
[395307058,1764605440052,-2511.81028472,0.00015003,2]
[395307060,1764605440062,-1041.1,0.00015003,2]
[395307061,1764605440071,-893.296114,0.00015015,2]
[395307062,1764605440081,-151.0,0.00015109,2]
[395307063,1764605440094,-760000.0,0.00015109,2]
[395307064,1764605440114,-163.56,0.00015115,2]
[395307065,1764605440124,-151.0,0.00015115,2]
[395307066,1764605440133,-11287.73537741,0.00015118,2]
[395307067,1764605440143,-738.37725963,0.00015118,2]
[395307068,1764605440153,-6671.8157,0.00015118,2]
[395307069,1764605440162,-280.8878,0.00015118,2]
[395307070,1764605440172,-2491.4269,0.00015118,2]
[395307071,1764605440182,-88507.5826,0.00015118,2]
[395307072,1764605440191,-250.0,0.000152,2]
[395307073,1764605440201,-251.4,0.000152,2]
[395307074,1764605440210,-3198.606,0.000152,2]
[395307075,1764605440220,-173.213,0.000152,2]
[395307076,1764605440229,-500.0,0.00015209,2]
[395307077,1764605440239,-500.0,0.00015209,2]
[395307078,1764605440249,-500.0,0.00015209,2]
[395307079,1764605440258,-500.0,0.00015209,2]
[395307080,1764605440268,-200.0,0.00015209,2]
[395307081,1764605440278,-500.0,0.00015209,2]
[395307082,1764605440288,-500.0,0.00015209,2]
[395307083,1764605440297,-500.0,0.00015209,2]
[395307084,1764605440306,-500.0,0.00015209,2]
[395307085,1764605440315,-500.0,0.00015209,2]
[395307086,1764605440325,-500.0,0.00015209,2]
[395307087,1764605440334,-500.0,0.00015209,2]
[395307088,1764605440343,-500.0,0.00015209,2]
[395307089,1764605440353,-500.0,0.00015209,2]
[395307090,1764605440362,-500.0,0.00015209,2]
[395307091,1764605440371,-500.0,0.00015209,2]
[395307092,1764605440381,-500.0,0.00015209,2]
[395307093,1764605440391,-500.0,0.00015209,2]
[395307094,1764605440400,-500.0,0.00015209,2]
[395307095,1764605440411,-151.0,0.00015209,2]
[395307096,1764605440420,-151.0,0.00015209,2]
[395307097,1764605440431,-151.0,0.00015209,2]
[395307098,1764605440440,-151.0,0.00015209,2]
[395307099,1764605440450,-151.0,0.00015209,2]
[395307100,1764605440459,-151.0,0.00015209,2]
[395307101,1764605440468,-151.0,0.00015209,2]
[395307102,1764605440478,-151.0,0.00015209,2]
[395307103,1764605440487,-151.0,0.00015209,2]
[395307104,1764605440496,-151.0,0.00015209,2]
[395307105,1764605440506,-200.0,0.00015209,2]
[395307106,1764605440515,-151.0,0.00015209,2]
[395307107,1764605440524,-500.0,0.00015209,2]
[395307108,1764605440533,-151.0,0.00015209,2]
[395307109,1764605440543,-500.0,0.00015209,2]
[395307110,1764605440553,-151.0,0.00015209,2]
[395307111,1764605440562,-500.0,0.00015209,2]
[395307112,1764605440571,-151.0,0.00015209,2]
[395307113,1764605440580,-500.0,0.00015209,2]
[395307114,1764605440590,-151.0,0.00015209,2]
[395307115,1764605440600,-500.0,0.00015209,2]
[395307116,1764605440610,-500.0,0.00015209,2]
[395307117,1764605440620,-151.0,0.00015209,2]
[395307118,1764605440629,-500.0,0.00015209,2]
[395307119,1764605440639,-151.0,0.00015209,2]
[395307120,1764605440649,-151.0,0.00015209,2]
[395307121,1764605440659,-151.0,0.00015209,2]
[395307122,1764605440670,-158.27356486,0.00015209,2]
[395307123,1764605440680,-151.0,0.00015209,2]
[395307124,1764605440690,-151.0,0.00015209,2]
[395307125,1764605440700,-151.0,0.00015209,2]
[395307126,1764605440711,-151.0,0.00015209,2]
[395307127,1764605440720,-151.0,0.00015209,2]
[395307128,1764605440730,-151.0,0.00015209,2]
[395307129,1764605440740,-151.0,0.00015209,2]
[395307130,1764605440750,-151.0,0.00015209,2]
[395307131,1764605440760,-151.0,0.00015209,2]
[395307132,1764605440770,-151.0,0.00015209,2]
[395307133,1764605440780,-151.0,0.00015209,2]
[395307134,1764605440789,-151.0,0.00015209,2]
[395307135,1764605440799,-151.0,0.00015209,2]
[395307136,1764605440809,-151.0,0.00015209,2]
[395307137,1764605440819,-500.0,0.00015209,2]
[395307138,1764605440829,-200.0,0.00015209,2]
[395307139,1764605440838,-1158.48,0.00015209,2]
[395307140,1764605440847,-499.60724259,0.00015217,2]
[395307141,1764605440857,-517.31808734,0.00015217,2]
[395307142,1764605440867,-500.0,0.00015217,2]
[395307143,1764605440877,-500.0,0.00015217,2]
[395307144,1764605440887,-500.0,0.00015217,2]
[395307145,1764605440900,-500.0,0.00015217,2]
[395307146,1764605440910,-500.0,0.00015217,2]
[395307147,1764605440920,-500.0,0.00015217,2]
[395307148,1764605440930,-500.0,0.00015217,2]
[395307149,1764605440939,-500.0,0.00015217,2]
[395307150,1764605440949,-500.0,0.00015217,2]
[395307151,1764605440959,-8272.86942617,0.00015217,2]
[395307152,1764605440968,-500.0,0.00015217,2]
[395307153,1764605440979,-500.0,0.00015217,2]
[395307154,1764605440988,-393.0941693,0.00015217,2]
[395307155,1764605440998,-394.01424542,0.00015217,2]
[395307156,1764605441008,-500.0,0.00015217,2]
[395307157,1764605441017,-485.52312637,0.00015217,2]
[395307158,1764605441027,-500.0,0.00015217,2]
[395307159,1764605441036,-200.0,0.00015217,2]
[395307160,1764605441047,-500.0,0.00015217,2]
[395307161,1764605441056,-500.274,0.00015217,2]
[395307162,1764605441066,-500.0,0.00015217,2]
[395307163,1764605441076,-500.0,0.00015217,2]
[395307164,1764605441086,-501.94091737,0.00015217,2]
[395307165,1764605441095,-556.83585957,0.00015217,2]
[395307166,1764605441106,-500.0,0.00015217,2]
[395307167,1764605441116,-500.0,0.00015217,2]
[395307168,1764605441125,-291.28618921,0.00015217,2]
[395307169,1764605441136,-1000.0,0.00015218,2]
[395307170,1764605441146,-600.0,0.00015218,2]
[395307171,1764605441155,-166.66,0.00015282,2]
[395307172,1764605441165,-150.0,0.00015288,2]
[395307173,1764605441175,-150.00000001,0.00015288,2]
[395307174,1764605441185,-150.0,0.00015288,2]
[395307175,1764605441195,-150.0,0.00015288,2]
[395307176,1764605441205,-150.0,0.00015288,2]
[395307177,1764605441216,-150.0,0.00015288,2]
[395307178,1764605441226,-150.0,0.00015288,2]
[395307179,1764605441236,-150.0,0.00015288,2]
[395307180,1764605441246,-150.0,0.00015288,2]
[395307181,1764605441256,-150.0,0.00015288,2]
[395307182,1764605441266,-150.0,0.00015288,2]
[395307183,1764605441275,-150.0,0.00015288,2]
[395307184,1764605441285,-150.0,0.00015288,2]
[395307185,1764605441295,-150.0,0.00015288,2]
[395307186,1764605441305,-190.82998658,0.00015288,2]
[395307187,1764605441315,-150.0,0.00015288,2]
[395307188,1764605441325,-150.0,0.00015288,2]
[395307189,1764605441335,-11287.73537737,0.00015316,2]
[395307190,1764605441345,-500.0,0.00015317,2]
[395307191,1764605441354,-522.79968162,0.00015317,2]
[395307192,1764605441364,-500.0,0.00015317,2]
[395307193,1764605441373,-500.0,0.00015317,2]
[395307194,1764605441383,-216.0958378,0.00015317,2]
[395307195,1764605441392,-500.0,0.00015317,2]
[395307196,1764605441402,-500.0,0.00015317,2]
[395307197,1764605441418,-500.0,0.00015317,2]
[395307198,1764605441439,-500.0,0.00015317,2]
[395307199,1764605441455,-500.0,0.00015317,2]
[395307200,1764605441470,-500.0,0.00015317,2]
[395307201,1764605441488,-500.0,0.00015317,2]
[395307202,1764605441504,-500.0,0.00015317,2]
[395307203,1764605441520,-500.0,0.00015317,2]
[395307204,1764605441536,-500.0,0.00015317,2]
[395307205,1764605441551,-500.0,0.00015317,2]
[395307206,1764605441564,-500.0,0.00015317,2]
[395307207,1764605441581,-500.0,0.00015317,2]
[395307208,1764605441597,-500.0,0.00015317,2]
[395307209,1764605441615,-500.0,0.00015317,2]
[395307210,1764605441632,-522.47521665,0.00015317,2]
[395307211,1764605441648,-150.0,0.00015338,2]
[395307212,1764605441666,-150.0,0.00015353,2]
[395307213,1764605441682,-150.0,0.00015377,2]
[395307214,1764605441698,-150.0,0.00015388,2]
[395307215,1764605441714,-150.0,0.00015394,2]
[395307216,1764605441731,-777.87712558,0.00015404,2]
[395307217,1764605441746,-150.0,0.00015409,2]
[395307218,1764605441761,-150.0,0.00015409,2]
[395307219,1764605441774,-150.0,0.00015418,2]
[395307220,1764605441789,-150.0,0.00015438,2]
[395307221,1764605441806,-150.0,0.00015466,2]
[395307222,1764605441819,-150.0,0.00015476,2]
[395307223,1764605441831,-1158.48,0.00015483,2]
[395307224,1764605441849,-150.0,0.00015484,2]
[395307225,1764605441864,-150.0,0.00015488,2]
[395307226,1764605441877,-166.66,0.00015498,2]
[395307227,1764605441889,-150.0,0.000155,2]
[395307228,1764605441908,-150.0,0.000155,2]
[395307229,1764605441921,-11287.73537737,0.00015514,2]
[395307230,1764605441935,-150.0,0.0001553,2]
[395307231,1764605441960,-150.0,0.0001553,2]
[395307232,1764605441975,-150.0,0.00015537,2]
[395307233,1764605441989,-150.0,0.00015549,2]
[395307234,1764605442003,-150.0,0.00015556,2]
[395307235,1764605442018,-150.0,0.00015587,2]
[395307236,1764605442032,-166.66,0.00015591,2]
[395307237,1764605442046,-150.0,0.00015606,2]
[395307238,1764605442060,-150.0,0.00015614,2]
[395307239,1764605442075,-150.0,0.00015627,2]
[395307240,1764605442089,-150.0,0.00015637,2]
[395307241,1764605442104,-150.0,0.00015645,2]
[395307242,1764605442118,-150.0,0.00015652,2]
[395307243,1764605442132,-150.0,0.00015652,2]
[395307244,1764605442146,-200.0,0.00015652,2]
[395307245,1764605442160,-151.0,0.00015657,2]
[395307246,1764605442174,-150.0,0.00015665,2]
[395307247,1764605442189,-150.0,0.0001568,2]
[395307248,1764605442203,-150.0,0.00015687,2]
[395307249,1764605442218,-11287.73537737,0.00015712,2]
[395307250,1764605442232,-150.0,0.00015712,2]